bitfinex/quotes_BTCUSD_20240611
["timestamp","ask_amount","ask_price","bid_price","bid_amount"]
[1718137053246,1.16223137,67443.0,67442.0,0.014946]
[1718137055299,1.16234168,67443.0,67442.0,0.014946]
[1718137058678,1.09054168,67443.0,67442.0,0.014946]
[1718137058905,1.16234168,67443.0,67442.0,0.014946]
[1718137059809,0.48574168,67443.0,67442.0,0.014946]
[1718137060033,0.94354168,67443.0,67442.0,0.014946]
[1718137060483,0.84187447,67443.0,67442.0,0.014946]
[1718137061147,0.77007447,67443.0,67442.0,0.014946]
[1718137061425,0.84187447,67443.0,67442.0,0.014946]
[1718137061648,0.94325012,67443.0,67442.0,0.014946]
[1718137065184,1.25079189,67443.0,67442.0,0.014946]
[1718137065839,0.40977742,67443.0,67442.0,0.014946]
[1718137066066,0.00086,67443.0,67442.0,0.681946]
[1718137066293,0.00086,67443.0,67442.0,0.7721486]
[1718137068104,0.00086,67443.0,67442.0,0.7671486]
[1718137068558,0.14298329,67452.0,67443.0,0.6661]
[1718137068793,0.14431993,67451.0,67444.0,0.2372]
[1718137069011,0.0718,67450.0,67444.0,0.2372]
[1718137070742,0.0718,67450.0,67444.0,0.2452]
[1718137070976,0.0718,67450.0,67444.0,0.2372]
[1718137071408,0.0718,67450.0,67444.0,0.2462]
[1718137080684,0.220058,67450.0,67444.0,0.2462]
[1718137081115,0.220058,67450.0,67444.0,0.032]
[1718137081353,0.148258,67450.0,67445.0,0.4519]
[1718137081582,0.148258,67450.0,67446.0,0.023]
[1718137081824,0.220058,67450.0,67446.0,0.023]
[1718137082044,0.220058,67450.0,67445.0,0.023]
[1718137082677,0.0718,67446.0,67445.0,0.023]
[1718137084445,0.0718,67446.0,67445.0,0.03]
[1718137085106,0.14826,67449.0,67445.0,0.03]
[1718137085326,0.0718,67446.0,67445.0,0.03]
[1718137085540,0.14826,67449.0,67445.0,0.03]
[1718137085774,0.0718,67447.0,67446.0,0.2145]
[1718137086008,0.06760608,67455.0,67448.0,0.2145]
[1718137086009,0.0718,67450.0,67448.0,0.2145]
[1718137086671,0.02,67457.0,67448.0,0.2145]
[1718137086672,0.04442863,67459.0,67448.0,0.2145]
[1718137086925,0.04442863,67459.0,67450.0,0.6675]
[1718137086926,0.1,67457.0,67450.0,0.6675]
[1718137087117,0.1,67457.0,67452.0,0.2157]
[1718137087547,0.1,67457.0,67453.0,0.023]
[1718137087802,0.0718,67454.0,67453.0,0.023]
[1718137088491,0.1,67457.0,67453.0,0.023]
[1718137088713,0.0718,67454.0,67453.0,0.023]
[1718137090268,0.0738,67454.0,67453.0,0.023]
[1718137090755,0.0818,67454.0,67453.0,0.024]
[1718137092117,0.01,67454.0,67453.0,0.024]
[1718137092341,0.15431993,67454.0,67453.0,0.001]
[1718137092566,0.98596893,67454.0,67453.0,0.001]
[1718137093223,0.14826,67449.0,67444.0,0.000946]
[1718137093447,0.0718,67446.0,67444.0,0.000946]
[1718137094568,0.0718,67446.0,67444.0,0.013946]
[1718137094748,0.0718,67446.0,67444.0,0.003946]
[1718137095179,0.0718,67446.0,67444.0,0.017946]
[1718137096064,0.0718,67445.0,67444.0,0.017946]
[1718137096282,0.0718,67445.0,67444.0,0.037946]
[1718137096733,0.0718,67445.0,67444.0,0.046946]
[1718137096934,0.0718,67445.0,67444.0,0.032946]
[1718137097162,0.0718,67445.0,67444.0,0.037946]
[1718137097372,0.0718,67445.0,67444.0,0.046946]
[1718137103754,1.05988793,67445.0,67444.0,0.023946]
[1718137104032,1.15988793,67445.0,67444.0,0.023946]
[1718137104677,1.65642493,67445.0,67444.0,0.014946]
[1718137104908,1.98496313,67445.0,67444.0,0.014946]
[1718137105134,2.475726,67445.0,67444.0,0.023946]
[1718137105577,2.36478628,67445.0,67444.0,0.023946]
[1718137106034,2.475726,67445.0,67444.0,0.009946]
[1718137106245,2.48362638,67445.0,67444.0,0.000946]
[1718137106458,2.36378628,67445.0,67444.0,0.012946]
[1718137106679,2.36378628,67445.0,67444.0,0.004946]
[1718137107159,2.16378628,67445.0,67444.0,0.000946]
[1718137107484,2.25253978,67445.0,67444.0,0.000946]
[1718137107660,1.90881132,67445.0,67444.0,0.001946]
[1718137108075,2.10881132,67445.0,67444.0,0.001946]
[1718137108286,2.04224808,67445.0,67444.0,0.001946]
[1718137108501,2.08663126,67445.0,67444.0,0.001946]
[1718137109192,2.04226209,67445.0,67444.0,0.001946]
[1718137109413,2.10882533,67445.0,67444.0,0.001946]
[1718137109884,2.03757044,67445.0,67444.0,0.001946]
[1718137110107,2.47759344,67445.0,67444.0,0.001946]
[1718137110329,2.06032359,67445.0,67444.0,0.001946]
[1718137110813,1.9710072,67445.0,67444.0,0.001946]
[1718137111040,2.24047052,67445.0,67444.0,0.001946]
[1718137111260,0.168306,67428.0,67427.0,0.000946]
[1718137111481,0.38442593,67428.0,67427.0,0.000946]
[1718137111698,0.48442593,67428.0,67427.0,0.000946]
[1718137111920,1.64053793,67428.0,67427.0,0.000946]
[1718137112143,1.77526097,67428.0,67427.0,0.000946]
[1718137112365,1.73091143,67428.0,67427.0,0.000946]
[1718137112813,1.65911143,67428.0,67427.0,0.000946]
[1718137113042,1.73091143,67428.0,67427.0,0.000946]
[1718137113478,1.64053793,67428.0,67427.0,0.009946]
[1718137113747,1.44053793,67428.0,67427.0,0.000946]
[1718137113965,1.44653793,67428.0,67427.0,0.001946]
[1718137115433,1.64653793,67428.0,67427.0,0.001946]
[1718137115612,1.44653793,67428.0,67427.0,0.001946]
[1718137116837,1.64653793,67428.0,67427.0,0.001946]
[1718137117103,1.44653793,67428.0,67427.0,0.001946]
[1718137117421,1.64653793,67428.0,67427.0,0.001946]
[1718137120074,1.71869789,67428.0,67427.0,0.001946]
[1718137120270,2.11530989,67428.0,67427.0,0.001946]
[1718137120470,2.21530989,67428.0,67427.0,0.001946]
[1718137121428,2.22743398,67428.0,67427.0,0.000946]
[1718137121671,2.15563398,67428.0,67427.0,0.000946]
[1718137121887,2.31570781,67428.0,67427.0,0.000946]
[1718137122128,2.22743398,67428.0,67427.0,0.000946]
[1718137122340,2.31570753,67428.0,67427.0,0.000946]
[1718137122818,2.16427402,67428.0,67427.0,0.001946]
[1718137123033,2.252982,67428.0,67427.0,0.001946]
[1718137123251,2.246982,67428.0,67427.0,0.000946]
[1718137123476,2.16727402,67428.0,67427.0,0.001946]
[1718137123921,2.53604598,67428.0,67427.0,1e-06]
[1718137124375,2.62527282,67428.0,67427.0,1e-06]
[1718137126597,2.48131286,67428.0,67427.0,1e-06]
[1718137126819,2.35311286,67428.0,67427.0,1e-06]
[1718137127245,2.46388602,67428.0,67427.0,1e-06]
[1718137127462,1.94887402,67428.0,67427.0,1e-06]
[1718137129246,1.67707402,67428.0,67427.0,1e-06]
[1718137129466,1.74887402,67428.0,67427.0,1e-06]
[1718137130573,1.01597402,67428.0,67427.0,1e-06]
[1718137130799,1.08777402,67428.0,67427.0,0.227701]
[1718137131019,1.10777402,67428.0,67427.0,0.227701]
[1718137131470,1.08777402,67428.0,67427.0,0.227701]
[1718137132149,0.79116202,67428.0,67427.0,0.229501]
[1718137132588,0.81116202,67428.0,67427.0,0.229501]
[1718137133090,0.71936202,67428.0,67427.0,0.229501]
[1718137133324,0.79116202,67428.0,67427.0,0.229501]
[1718137134048,0.78216202,67428.0,67427.0,0.2295]
[1718137134273,0.71036202,67428.0,67427.0,0.2305]
[1718137134492,0.78816202,67428.0,67427.0,0.2305]
[1718137134720,0.78516202,67428.0,67427.0,0.2305]
[1718137135593,0.78516202,67428.0,67427.0,0.2335]
[1718137135816,0.78516202,67428.0,67427.0,0.6943]
[1718137136256,0.77916202,67428.0,67427.0,0.6933]
[1718137136472,0.78216202,67428.0,67427.0,0.6933]
[1718137139350,0.71036202,67428.0,67427.0,0.6933]
[1718137139560,0.78216202,67428.0,67427.0,0.6933]
[1718137141316,0.80216202,67428.0,67427.0,0.6933]
[1718137144035,1.09877402,67428.0,67427.0,0.003]
[1718137144241,1.40642187,67428.0,67427.0,0.003]
[1718137144660,1.48268856,67428.0,67427.0,0.003]
[1718137147439,1.50587278,67428.0,67427.0,0.003]
[1718137147658,1.50688121,67428.0,67427.0,0.003]
[1718137147884,1.48688121,67428.0,67427.0,0.2258]
[1718137148137,1.12195824,67428.0,67427.0,0.2258]
[1718137151360,1.05015824,67428.0,67427.0,0.2258]
[1718137151573,1.12195824,67428.0,67427.0,0.2258]
[1718137151990,1.12195824,67428.0,67427.0,0.003]
[1718137153021,1.79745824,67428.0,67427.0,0.003]
[1718137153247,2.1835763,67428.0,67427.0,0.003]
[1718137154093,2.22789727,67428.0,67427.0,0.003]
[1718137154979,2.15609727,67428.0,67427.0,0.003]
[1718137155197,2.14942231,67428.0,67427.0,0.003]
[1718137155396,2.18338276,67428.0,67427.0,0.003]
[1718137155617,1.95248276,67428.0,67427.0,0.003]
[1718137156025,1.99688655,67428.0,67427.0,0.003]
[1718137156332,1.95248276,67428.0,67427.0,0.003]
[1718137157026,1.95148276,67428.0,67427.0,0.003]
[1718137157238,1.43508276,67428.0,67427.0,0.003]
[1718137157462,1.55129534,67428.0,67427.0,0.003]
[1718137157677,1.55129534,67428.0,67427.0,0.003946]
[1718137157892,1.50774276,67428.0,67427.0,0.003946]
[1718137158111,1.55215644,67428.0,67427.0,0.003946]
[1718137158534,1.57422422,67428.0,67427.0,0.003946]
[1718137158750,1.50774276,67428.0,67427.0,0.003946]
[1718137159419,1.42946134,67428.0,67427.0,0.003946]
[1718137159637,1.50753562,67428.0,67427.0,0.003946]
[1718137159862,1.57415643,67428.0,67427.0,0.003946]
[1718137160299,1.50753562,67428.0,67427.0,0.003946]
[1718137162093,1.57415643,67428.0,67427.0,0.003946]
[1718137162315,1.50753562,67428.0,67427.0,0.003946]
[1718137162921,1.57415643,67428.0,67427.0,0.003946]
[1718137163359,1.50753562,67428.0,67427.0,0.003946]
[1718137163571,1.57415643,67428.0,67427.0,0.003946]
[1718137164247,1.50753562,67428.0,67427.0,0.003946]
[1718137164928,1.42946134,67428.0,67427.0,0.003946]
[1718137165150,1.57419486,67428.0,67427.0,0.003946]
[1718137165598,2.24339486,67428.0,67427.0,0.003946]
[1718137165804,2.31519486,67428.0,67427.0,0.003946]
[1718137166024,2.24856937,67428.0,67427.0,0.003946]
[1718137168498,2.31519486,67428.0,67427.0,0.003946]
[1718137168714,2.24856937,67428.0,67427.0,0.003946]
[1718137169158,2.24851055,67428.0,67427.0,0.003946]
[1718137169602,2.31514682,67428.0,67427.0,0.003946]
[1718137170485,2.24851055,67428.0,67427.0,0.003946]
[1718137171360,2.5771118,67428.0,67427.0,0.003946]
[1718137172145,2.72748962,67428.0,67427.0,0.003946]
[1718137173380,2.73643903,67428.0,67427.0,0.003946]
[1718137173834,2.7275373,67428.0,67427.0,0.003946]
[1718137174003,2.73643903,67428.0,67427.0,0.003946]
[1718137174596,2.64754647,67428.0,67427.0,0.003946]
[1718137175026,4.1823167,67428.0,67427.0,0.003946]
[1718137175236,0.02,67415.0,67413.0,0.2268]
[1718137175454,0.27764939,67414.0,67413.0,0.2268]
[1718137175673,0.42598639,67414.0,67413.0,0.2268]
[1718137176539,0.42598639,67414.0,67413.0,0.2438]
[1718137176747,0.42598639,67414.0,67413.0,0.2318]
[1718137176953,0.42598639,67414.0,67413.0,0.2268]
[1718137177161,0.72266039,67414.0,67413.0,0.2268]
[1718137177383,0.72266039,67414.0,67413.0,0.2388]
[1718137177594,0.74266039,67414.0,67413.0,0.2388]
[1718137177965,0.74366039,67414.0,67413.0,0.2438]
[1718137178615,0.84080431,67414.0,67413.0,0.2438]
[1718137178812,0.74366039,67414.0,67413.0,0.2438]
[1718137179508,0.74366039,67414.0,67413.0,0.017]
[1718137179722,0.84080502,67414.0,67413.0,0.017]
[1718137180179,1.23747902,67414.0,67413.0,0.017]
[1718137180611,1.16567902,67414.0,67413.0,0.017]
[1718137180829,1.54518142,67414.0,67413.0,0.017]
[1718137181044,1.54418142,67414.0,67413.0,0.012]
[1718137181250,0.316691,67410.0,67407.0,0.6435]
[1718137181473,0.14431993,67409.0,67407.0,0.6435]
[1718137181712,0.06152946,67408.0,67407.0,0.6435]
[1718137181922,0.20584939,67408.0,67407.0,0.6435]
[1718137182167,0.22584939,67408.0,67407.0,0.6435]
[1718137182417,0.65089939,67408.0,67407.0,0.6435]
[1718137182639,0.65091057,67408.0,67407.0,0.6435]
[1718137183128,0.58936993,67408.0,67407.0,0.6435]
[1718137183328,0.59136993,67408.0,67407.0,0.6625]
[1718137183829,0.59036993,67408.0,67407.0,0.6575]
[1718137184068,0.58936993,67408.0,67407.0,0.6465]
[1718137184280,0.14835,67408.0,67407.0,0.6465]
[1718137184492,0.14935,67408.0,67407.0,0.6555]
[1718137190182,0.14935,67408.0,67407.0,0.012]
[1718137190183,0.59036993,67408.0,67407.0,0.012]
[1718137190847,0.59036993,67408.0,67407.0,0.2424]
[1718137191758,0.59036993,67408.0,67407.0,0.243346]
[1718137191938,0.29366993,67408.0,67407.0,0.243346]
[1718137192201,0.29366993,67408.0,67407.0,0.676746]
[1718137192645,0.68216993,67408.0,67407.0,0.012946]
[1718137193104,0.7437143,67408.0,67407.0,0.012946]
[1718137195474,0.6719143,67408.0,67407.0,0.012946]
[1718137195691,0.7437143,67408.0,67407.0,0.012946]
[1718137195911,1.1404143,67408.0,67407.0,0.012946]
[1718137196367,1.7915143,67408.0,67407.0,0.012946]
[1718137196818,1.88227929,67408.0,67407.0,0.000946]
[1718137197036,1.88227929,67408.0,67407.0,0.012946]
[1718137197261,1.88327929,67408.0,67407.0,0.012946]
[1718137197482,1.88227929,67408.0,67407.0,0.003946]
[1718137198142,1.88227929,67408.0,67407.0,0.000946]
[1718137198930,1.88227929,67408.0,67407.0,0.003946]
[1718137199147,2.62669675,67408.0,67407.0,0.000946]
[1718137199583,2.62969675,67408.0,67407.0,0.001946]
[1718137200023,2.62669675,67408.0,67407.0,0.001946]
[1718137200452,2.63069675,67408.0,67407.0,0.001946]
[1718137200889,2.63103748,67408.0,67407.0,0.001946]
[1718137201341,2.73375104,67408.0,67407.0,0.001946]
[1718137201766,2.4945143,67408.0,67407.0,0.001946]
[1718137201978,2.63097484,67408.0,67407.0,0.001946]
[1718137202414,2.73297612,67408.0,67407.0,0.001946]
[1718137202868,2.58658068,67408.0,67407.0,0.001946]
[1718137203100,2.51478068,67408.0,67407.0,0.001946]
[1718137203322,1.86368068,67408.0,67407.0,0.001946]
[1718137203578,1.84368068,67408.0,67407.0,0.001946]
[1718137203838,1.86368068,67408.0,67407.0,0.001946]
[1718137204063,1.84368068,67408.0,67407.0,0.001946]
[1718137204268,1.7516143,67408.0,67407.0,0.001946]
[1718137204702,1.84316033,67408.0,67407.0,0.001946]
[1718137206067,2.54456033,67408.0,67407.0,0.001946]
[1718137206320,2.92408549,67408.0,67407.0,0.001946]
[1718137206591,2.96847427,67408.0,67407.0,0.001946]
[1718137207030,2.92408549,67408.0,67407.0,0.001946]
[1718137210563,2.86254112,67408.0,67407.0,0.001946]
[1718137210773,2.9240895,67408.0,67407.0,0.001946]
[1718137212536,2.72769067,67408.0,67407.0,0.001946]
[1718137213022,2.26589067,67408.0,67407.0,0.001946]
[1718137213998,2.19409067,67408.0,67407.0,0.001946]
[1718137214218,1.88636551,67408.0,67407.0,0.001946]
[1718137215767,1.88636551,67408.0,67407.0,0.671246]
[1718137215978,1.8863636,67408.0,67407.0,0.671246]
[1718137216192,1.8663636,67408.0,67407.0,0.671246]
[1718137216651,1.8663636,67408.0,67407.0,0.001946]
[1718137216921,1.5696636,67408.0,67407.0,0.220246]
[1718137218056,1.54646243,67408.0,67407.0,0.220246]
[1718137218701,1.56646243,67408.0,67407.0,0.220246]
[1718137220635,1.61085539,67408.0,67407.0,0.220246]
[1718137221288,1.61089155,67408.0,67407.0,0.220246]
[1718137222614,1.56646243,67408.0,67407.0,0.220246]
[1718137223052,1.61089531,67408.0,67407.0,0.220246]
[1718137223470,1.51934928,67408.0,67407.0,0.220246]
[1718137223656,1.56698814,67408.0,67407.0,0.220246]
[1718137224381,1.63363182,67408.0,67407.0,0.220246]
[1718137224633,1.56698814,67408.0,67407.0,0.220246]
[1718137224850,1.86368814,67408.0,67407.0,0.001946]
[1718137225072,1.93548814,67408.0,67407.0,0.001946]
[1718137225284,2.26418761,67408.0,67407.0,0.001946]
[1718137225515,2.05634585,67408.0,67407.0,0.001946]
[1718137225751,2.0563779,67408.0,67407.0,0.001946]
[1718137226177,2.3530779,67408.0,67407.0,0.001946]
[1718137226826,2.26316015,67408.0,67407.0,0.001946]
[1718137227044,1.63775607,67408.0,67407.0,0.001946]
[1718137227457,2.05533833,67408.0,67407.0,0.001946]
[1718137227598,1.96645265,67408.0,67407.0,0.001946]
[1718137228026,1.7044207,67408.0,67407.0,0.001946]
[1718137229381,2.0011207,67408.0,67407.0,0.001946]
[1718137229633,1.96645789,67408.0,67407.0,0.001946]
[1718137229831,2.05534357,67408.0,67407.0,0.001946]
[1718137229962,1.9937971,67408.0,67407.0,0.001946]
[1718137230166,1.63775704,67408.0,67407.0,0.001946]
[1718137231620,1.96645314,67408.0,67407.0,0.001946]
[1718137232272,0.465135,67395.0,67394.0,0.000946]
[1718137232483,1.12877435,67395.0,67394.0,0.000946]
[1718137232728,1.47322943,67395.0,67394.0,0.000946]
[1718137232937,1.66865932,67395.0,67394.0,0.000946]
[1718137233147,1.55755221,67395.0,67394.0,0.000946]
[1718137233372,1.75755221,67395.0,67394.0,0.000946]
[1718137233599,1.75755221,67395.0,67394.0,0.014946]
[1718137233600,1.55855221,67395.0,67394.0,0.014946]
[1718137233837,2.99453595,67395.0,67394.0,0.000946]
[1718137234048,1.891005,67394.0,67393.0,0.00558319]
[1718137234261,1.891005,67394.0,67387.0,0.009427]
[1718137234262,0.32,67388.0,67387.0,0.009427]
[1718137234485,1.86116435,67388.0,67387.0,0.009427]
[1718137234715,1.86116435,67388.0,67372.0,0.240627]
[1718137234716,0.568405,67383.0,67372.0,0.240627]
[1718137234959,2.11323099,67383.0,67372.0,0.240627]
[1718137235181,2.0435064,67383.0,67372.0,0.240627]
[1718137235404,2.6371264,67383.0,67372.0,0.240627]
[1718137235623,2.7371264,67383.0,67372.0,0.240627]
[1718137235854,2.7371264,67383.0,67372.0,0.009427]
[1718137235855,2.78584089,67383.0,67372.0,0.009427]
[1718137236073,2.5235846,67383.0,67372.0,0.009427]
[1718137236293,2.85382107,67383.0,67372.0,0.009427]
[1718137236518,3.18267395,67383.0,67372.0,0.009427]
[1718137236764,0.568418,67377.0,67372.0,0.009427]
[1718137236979,1.15195375,67377.0,67372.0,0.009427]
[1718137237199,1.56302932,67377.0,67372.0,0.009427]
[1718137237412,1.51867269,67377.0,67372.0,0.009427]
[1718137237632,1.56735863,67377.0,67372.0,0.009427]
[1718137237856,1.63393969,67377.0,67372.0,0.009427]
[1718137238087,1.61169051,67377.0,67372.0,0.009427]
[1718137238310,2.20536451,67377.0,67372.0,0.009427]
[1718137238948,1.88923263,67377.0,67372.0,0.009427]
[1718137239184,1.97103263,67377.0,67372.0,0.009427]
[1718137239436,1.97103263,67377.0,67376.0,0.013427]
[1718137239651,1.88181765,67377.0,67376.0,0.009427]
[1718137240135,1.88581765,67377.0,67376.0,0.009427]
[1718137240389,1.96533171,67377.0,67376.0,0.009427]
[1718137240609,2.03713171,67377.0,67376.0,0.009427]
[1718137241311,2.03713735,67377.0,67376.0,0.009427]
[1718137241525,1.93713735,67377.0,67376.0,0.009427]
[1718137241736,2.03713735,67377.0,67376.0,0.009427]
[1718137242164,2.03713697,67377.0,67376.0,0.009427]
[1718137243144,1.83713697,67377.0,67376.0,0.009427]
[1718137243349,2.03713697,67377.0,67376.0,0.009427]
[1718137244823,1.93713697,67377.0,67376.0,0.009427]
[1718137245030,2.03713697,67377.0,67376.0,0.009427]
[1718137245662,1.93713697,67377.0,67376.0,0.009427]
[1718137245838,2.03713697,67377.0,67376.0,0.009427]
[1718137247865,1.33203697,67377.0,67376.0,0.009427]
[1718137248071,1.40383697,67377.0,67376.0,0.009427]
[1718137250129,0.94499331,67377.0,67376.0,0.009427]
[1718137250334,1.10844965,67377.0,67376.0,0.009427]
[1718137250545,1.18024965,67377.0,67376.0,0.009427]
[1718137252248,1.24182943,67377.0,67376.0,0.009427]
[1718137252872,1.94182943,67377.0,67376.0,0.009427]
[1718137253953,1.94182922,67377.0,67376.0,0.009427]
[1718137254589,1.98770269,67377.0,67376.0,0.009427]
[1718137257869,1.98856269,67377.0,67376.0,0.009427]
[1718137258079,2.08016816,67377.0,67376.0,0.009427]
[1718137258287,2.28016816,67377.0,67376.0,0.009427]
[1718137260423,2.00836816,67377.0,67376.0,0.009427]
[1718137260627,2.08016816,67377.0,67376.0,0.009427]
[1718137261049,2.28016816,67377.0,67376.0,0.009427]
[1718137261701,2.2803971,67377.0,67376.0,0.009427]
[1718137261861,2.0803971,67377.0,67376.0,0.009427]
[1718137262692,2.28039974,67377.0,67376.0,0.009427]
[1718137262885,3.21983674,67377.0,67376.0,0.009427]
[1718137263073,3.21983674,67377.0,67372.0,0.009427]
[1718137263074,1.338989,67373.0,67372.0,0.009427]
[1718137263267,0.445368,67360.0,67359.0,0.221627]
[1718137263543,0.91495041,67360.0,67359.0,0.221627]
[1718137263875,1.21186241,67360.0,67359.0,0.009427]
[1718137264659,1.22177217,67360.0,67359.0,0.012427]
[1718137264868,0.95953876,67360.0,67359.0,0.012427]
[1718137265167,0.96688878,67360.0,67359.0,0.012427]
[1718137265379,1.21630667,67360.0,67359.0,0.012427]
[1718137265793,1.21530667,67360.0,67359.0,0.009427]
[1718137266222,1.21630667,67360.0,67359.0,0.012427]
[1718137266435,1.21630667,67360.0,67359.0,0.009427]
[1718137266639,1.21130667,67360.0,67359.0,0.009427]
[1718137266849,1.98334167,67360.0,67359.0,0.009427]
[1718137267267,2.07334167,67360.0,67359.0,0.009427]
[1718137267482,2.07334167,67360.0,67345.0,0.009427]
[1718137267483,0.148486,67346.0,67345.0,0.009427]
[1718137267681,0.320286,67346.0,67345.0,0.009427]
[1718137267887,0.5576165,67346.0,67345.0,0.009427]
[1718137268894,0.71498565,67346.0,67345.0,0.009427]
[1718137270113,0.71598565,67346.0,67345.0,0.012427]
[1718137270347,0.71498565,67346.0,67345.0,0.009427]
[1718137270737,0.62421185,67346.0,67345.0,0.011427]
[1718137272258,1.20140128,67346.0,67345.0,0.011427]
[1718137272467,0.31091528,67346.0,67345.0,0.694027]
[1718137272676,0.31091528,67346.0,67345.0,0.674027]
[1718137272914,0.24931993,67346.0,67345.0,0.674027]
[1718137273555,0.24931993,67346.0,67345.0,0.694027]
[1718137274483,0.24931993,67346.0,67345.0,0.674027]
[1718137274663,0.24931993,67346.0,67345.0,0.694027]
[1718137275318,0.24931993,67346.0,67345.0,0.674027]
[1718137275734,0.24931993,67346.0,67345.0,0.694027]
[1718137277300,0.24831993,67346.0,67345.0,0.694027]
[1718137277500,0.24831993,67346.0,67345.0,0.674027]
[1718137280526,0.24831993,67346.0,67345.0,0.694027]
[1718137281500,0.39680593,67346.0,67345.0,0.674027]
[1718137282991,0.39680593,67346.0,67345.0,0.694027]
[1718137284157,0.39680593,67346.0,67345.0,0.674027]
[1718137285029,0.39680593,67346.0,67345.0,0.694027]
[1718137285963,0.154463,67345.0,67340.0,0.1718]
[1718137286163,0.1,67344.0,67340.0,0.1718]
[1718137287557,0.154463,67345.0,67344.0,0.1]
[1718137287558,0.005973,67345.0,67344.0,0.1]
[1718137287819,0.005973,67345.0,67344.0,0.123]
[1718137288689,0.006973,67345.0,67344.0,0.123]
[1718137288899,0.005973,67345.0,67344.0,0.123]
[1718137289117,0.005973,67345.0,67344.0,0.8158]
[1718137289322,0.006973,67345.0,67344.0,0.8168]
[1718137289534,0.006973,67345.0,67344.0,0.8368]
[1718137289744,0.006973,67345.0,67344.0,1.0919439]
[1718137290168,0.005973,67345.0,67344.0,1.0909439]
[1718137290399,0.006973,67345.0,67344.0,1.0909439]
[1718137290605,0.006973,67345.0,67344.0,1.0919439]
[1718137291877,0.006973,67345.0,67344.0,0.985291]
[1718137293466,0.006973,67345.0,67344.0,1.057091]
[1718137293903,0.006973,67345.0,67344.0,1.1125555]
[1718137294324,0.007973,67345.0,67344.0,1.1175555]
[1718137295329,0.006973,67345.0,67344.0,1.1175555]
[1718137295554,0.007973,67345.0,67344.0,1.23584684]
[1718137296392,0.007973,67345.0,67344.0,1.23584424]
[1718137299126,0.007973,67345.0,67344.0,1.16404424]
[1718137299297,0.007973,67345.0,67344.0,1.23584424]
[1718137299508,0.007973,67345.0,67344.0,1.17938234]
[1718137306081,0.007973,67345.0,67344.0,1.074091]
[1718137309611,0.007973,67345.0,67344.0,1.054091]
[1718137317545,0.007973,67345.0,67344.0,0.982291]
[1718137317735,0.007973,67345.0,67344.0,1.054091]
[1718137318162,0.007973,67345.0,67344.0,0.141]
[1718137318319,0.703173,67345.0,67344.0,0.141]
[1718137318518,0.703173,67345.0,67344.0,0.041]
[1718137318987,0.703173,67345.0,67344.0,0.018]
[1718137320474,0.701173,67345.0,67342.0,0.1]
[1718137320899,0.702173,67345.0,67344.0,0.01]
[1718137321752,0.703173,67345.0,67344.0,0.015]
[1718137322180,0.703173,67345.0,67344.0,0.010946]
[1718137322382,0.701173,67345.0,67344.0,0.000946]
[1718137322624,0.702033,67345.0,67344.0,0.003946]
[1718137322836,0.703033,67345.0,67344.0,0.003946]
[1718137323254,0.702033,67345.0,67344.0,0.003946]
[1718137323477,0.703033,67345.0,67344.0,0.013946]
[1718137328956,0.76462605,67345.0,67344.0,0.013946]
[1718137329851,0.703033,67345.0,67344.0,0.013946]
[1718137332006,0.76462908,67345.0,67344.0,0.013946]
[1718137332209,0.703033,67345.0,67344.0,0.013946]
[1718137335621,0.483933,67345.0,67344.0,0.013946]
[1718137337479,0.007833,67345.0,67344.0,0.013946]
[1718137340900,0.007833,67345.0,67344.0,0.085746]
[1718137347225,0.007833,67345.0,67344.0,0.9537933]
[1718137348299,0.007833,67345.0,67344.0,0.866546]
[1718137348948,0.007833,67345.0,67344.0,0.794746]
[1718137349173,0.007833,67345.0,67344.0,0.866546]
[1718137356031,0.007833,67345.0,67344.0,0.361046]
[1718137356234,0.007833,67345.0,67344.0,0.208746]
[1718137357231,0.007833,67345.0,67344.0,0.013946]
[1718137357232,0.626133,67345.0,67344.0,0.013946]
[1718137357433,0.774622,67345.0,67344.0,0.013946]
[1718137359264,0.774622,67345.0,67344.0,0.085746]
[1718137359713,0.83621657,67345.0,67344.0,0.085746]
[1718137360846,0.774622,67345.0,67344.0,0.085746]
[1718137361067,0.8362164,67345.0,67344.0,0.085746]
[1718137361791,0.8362164,67345.0,67344.0,0.013946]
[1718137362243,0.8362164,67345.0,67344.0,0.085746]
[1718137363120,0.774622,67345.0,67344.0,0.085746]
[1718137363814,0.83621643,67345.0,67344.0,0.085746]
[1718137364044,1.53621643,67345.0,67344.0,0.085746]
[1718137369639,1.326133,67345.0,67344.0,0.085746]
[1718137369853,1.108633,67345.0,67344.0,0.085746]
[1718137372376,1.108633,67345.0,67344.0,0.013946]
[1718137372592,1.108633,67345.0,67344.0,0.085746]
[1718137372593,1.17022743,67345.0,67344.0,0.085746]
[1718137376288,0.76942743,67345.0,67344.0,0.085746]
[1718137376727,0.76942764,67345.0,67344.0,0.085746]
[1718137381035,0.76942764,67345.0,67344.0,0.013946]
[1718137385394,0.76942712,67345.0,67344.0,0.013946]
[1718137396614,0.76942712,67345.0,67344.0,0.211546]
[1718137397673,0.76842712,67345.0,67344.0,0.211546]
[1718137398279,0.706833,67345.0,67344.0,0.211546]
[1718137399381,0.706833,67345.0,67344.0,0.013946]
[1718137404015,0.706833,67345.0,67344.0,0.036946]
[1718137406203,0.855322,67345.0,67344.0,0.036946]
[1718137414311,0.855322,67345.0,67344.0,0.108746]
[1718137417591,0.855322,67345.0,67344.0,0.10869442]
[1718137422558,0.91691652,67345.0,67344.0,0.10869442]
[1718137428119,0.855322,67345.0,67344.0,0.10869442]
[1718137430015,1.057822,67345.0,67344.0,0.03689442]
[1718137431930,0.855322,67345.0,67344.0,0.03689442]
[1718137433910,0.855322,67345.0,67344.0,0.01389442]
[1718137445682,0.855322,67345.0,67344.0,0.03689442]
[1718137451164,0.855322,67345.0,67344.0,0.10869442]
[1718137460211,0.855322,67345.0,67344.0,0.30269442]
[1718137461151,1.227522,67345.0,67344.0,0.01389442]
[1718137461366,1.423722,67345.0,67344.0,0.03689442]